[Event "Titled Tuesday Blitz February 01 B 2022"]
[White "Urazayev, Arystanbek"]
[Black "Potapova, Margarita"]
[WhiteFideId "13709810"]
[BlackFideId "14126869"]
[WhiteElo "2321"]
[BlackElo "2209"]
[Result "1-0"]
[Round "06"]
[TimeControl "180+1"]
[Date "2022.02.01"]
[WhiteClock "0:01:02"]
[BlackClock "0:00:04"]

1. e4 {[%clk 0:03:00]}  c5 {[%clk 0:02:59]} 2. Nf3 {[%clk 0:03:01]}  d6 {[%clk 0:02:59]} 3. d4 {[%clk 0:03:00]}  cxd4 {[%clk 0:03:00]} 4. Nxd4 {[%clk 0:03:01]}  Nf6 {[%clk 0:03:00]} 5. Nc3 {[%clk 0:03:01]}  a6 {[%clk 0:03:01]} 6. Rg1 {[%clk 0:03:01]}  e5 {[%clk 0:02:57]} 7. Nb3 {[%clk 0:03:02]}  Be6 {[%clk 0:02:57]} 8. g4 {[%clk 0:03:02]}  d5 {[%clk 0:02:57]} 9. exd5 {[%clk 0:03:03]}  Nxd5 {[%clk 0:02:55]} 10. Nxd5 {[%clk 0:03:03]}  Qxd5 {[%clk 0:02:55]} 11. Qxd5 {[%clk 0:03:04]}  Bxd5 {[%clk 0:02:56]} 12. Be3 {[%clk 0:03:04]}  Nc6 {[%clk 0:02:30]} 13. O-O-O {[%clk 0:03:04]}  O-O-O {[%clk 0:02:12]} 14. Bb6 {[%clk 0:03:03]}  Rd7 {[%clk 0:02:12]} 15. a3 {[%clk 0:03:03]}  Be7 {[%clk 0:02:00]} 16. g5 {[%clk 0:03:04]}  Be6 {[%clk 0:01:56]} 17. Rxd7 {[%clk 0:03:02]}  Bxd7 {[%clk 0:01:56]} 18. Bc4 {[%clk 0:03:01]}  f6 {[%clk 0:01:40]} 19. gxf6 {[%clk 0:02:55]}  Bxf6 {[%clk 0:01:40]} 20. Nc5 {[%clk 0:02:53]}  Bf5 {[%clk 0:01:40]} 21. c3 {[%clk 0:02:39]}  h6 {[%clk 0:01:37]} 22. Bd3 {[%clk 0:02:17]}  Bxd3 {[%clk 0:01:23]} 23. Nxd3 {[%clk 0:02:18]}  e4 {[%clk 0:01:20]} 24. Nc5 {[%clk 0:02:15]}  Re8 {[%clk 0:00:53]} 25. Re1 {[%clk 0:02:15]}  Ne5 {[%clk 0:00:50]} 26. Rxe4 {[%clk 0:02:07]}  Nd3+ {[%clk 0:00:32]} 27. Kc2 {[%clk 0:02:07]}  Ne1+ {[%clk 0:00:21]} 28. Kd1 {[%clk 0:01:50]}  Rxe4 {[%clk 0:00:20]} 29. Nxe4 {[%clk 0:01:51]}  Nf3 {[%clk 0:00:17]} 30. Nxf6 {[%clk 0:01:48]}  gxf6 {[%clk 0:00:18]} 31. Be3 {[%clk 0:01:48]}  h5 {[%clk 0:00:17]} 32. Bf4 {[%clk 0:01:48]}  Kd7 {[%clk 0:00:15]} 33. Ke2 {[%clk 0:01:47]}  Nh4 {[%clk 0:00:13]} 34. c4 {[%clk 0:01:43]}  Ng6 {[%clk 0:00:11]} 35. Bb8 {[%clk 0:01:33]}  Kc6 {[%clk 0:00:10]} 36. b4 {[%clk 0:01:28]}  Kd7 {[%clk 0:00:06]} 37. Ke3 {[%clk 0:01:22]}  Ke6 {[%clk 0:00:07]} 38. Kd4 {[%clk 0:01:20]}  b6 {[%clk 0:00:04]} 39. Bc7 {[%clk 0:01:14]}  b5 {[%clk 0:00:03]} 40. cxb5 {[%clk 0:01:14]}  axb5 {[%clk 0:00:04]} 41. Kc5 {[%clk 0:01:15]}  Nh4 {[%clk 0:00:04]} 42. Kxb5 {[%clk 0:01:12]}  Kd7 {[%clk 0:00:04]} 43. Bg3 {[%clk 0:01:11]}  Nf3 {[%clk 0:00:04]} 44. a4 {[%clk 0:01:09]}  h4 {[%clk 0:00:05]} 45. Bf4 {[%clk 0:01:09]}  Nd4+ {[%clk 0:00:05]} 46. Kb6 {[%clk 0:01:09]}  Ne6 {[%clk 0:00:05]} 47. Be3 {[%clk 0:01:09]}  f5 {[%clk 0:00:05]} 48. a5 {[%clk 0:01:06]}  f4 {[%clk 0:00:06]} 49. Bc1 {[%clk 0:01:03]}  f3 {[%clk 0:00:06]} 50. Be3 {[%clk 0:01:02]}  Nc7 {[%clk 0:00:06]} 51. Kb7 {[%clk 0:01:01]}  Nd5 {[%clk 0:00:06]} 52. Bc5 {[%clk 0:01:01]}  Nf6 {[%clk 0:00:02]} 53. a6 {[%clk 0:01:01]}  Ng4 {[%clk 0:00:03]} 54. a7 {[%clk 0:01:01]}  Nxh2 {[%clk 0:00:04]} 55. a8=Q {[%clk 0:01:02]} 1-0


[Site "https://www.chess.com"]

[Event "Titled Tuesday Blitz February 01 B 2022"]
[White "Van Foreest, Jorden"]
[Black "Kravtsiv, Martyn"]
[WhiteFideId "1039784"]
[BlackFideId "14113147"]
[WhiteElo "2609"]
[BlackElo "2694"]
[Result "1-0"]
[Round "06"]
[TimeControl "180+1"]
[Date "2022.02.01"]
[WhiteClock "0:00:09"]
[BlackClock "0:00:01"]

1. e4 {[%clk 0:03:00]}  e5 {[%clk 0:02:59]} 2. Nf3 {[%clk 0:02:59]}  Nc6 {[%clk 0:02:59]} 3. c3 {[%clk 0:02:59]}  d5 {[%clk 0:02:54]} 4. Qa4 {[%clk 0:02:55]}  Qd6 {[%clk 0:02:48]} 5. d3 {[%clk 0:02:54]}  Nf6 {[%clk 0:02:45]} 6. Bg5 {[%clk 0:02:51]}  Be7 {[%clk 0:02:44]} 7. Nbd2 {[%clk 0:02:50]}  O-O {[%clk 0:02:43]} 8. Be2 {[%clk 0:02:50]}  Be6 {[%clk 0:02:39]} 9. O-O {[%clk 0:02:48]}  Nd7 {[%clk 0:02:34]} 10. exd5 {[%clk 0:02:47]}  Bxd5 {[%clk 0:02:28]} 11. Ne4 {[%clk 0:02:45]}  Bxe4 {[%clk 0:02:25]} 12. Bxe7 {[%clk 0:02:39]}  Qxe7 {[%clk 0:02:16]} 13. dxe4 {[%clk 0:02:39]}  Nc5 {[%clk 0:02:15]} 14. Qc2 {[%clk 0:02:38]}  a6 {[%clk 0:02:05]} 15. Rad1 {[%clk 0:02:36]}  Ne6 {[%clk 0:02:05]} 16. g3 {[%clk 0:02:35]}  Rfd8 {[%clk 0:02:00]} 17. Bc4 {[%clk 0:02:35]}  Rxd1 {[%clk 0:01:48]} 18. Rxd1 {[%clk 0:02:34]}  Rd8 {[%clk 0:01:47]} 19. Rd5 {[%clk 0:02:34]}  Ng5 {[%clk 0:01:40]} 20. Nd2 {[%clk 0:02:31]}  Qf6 {[%clk 0:01:29]} 21. Kg2 {[%clk 0:02:20]}  Ne6 {[%clk 0:00:54]} 22. Nf3 {[%clk 0:02:10]}  h6 {[%clk 0:00:50]} 23. h4 {[%clk 0:02:09]}  Rd6 {[%clk 0:00:35]} 24. b4 {[%clk 0:02:07]}  Nf8 {[%clk 0:00:31]} 25. a4 {[%clk 0:02:05]}  Nd7 {[%clk 0:00:30]} 26. Qb3 {[%clk 0:02:00]}  Nb6 {[%clk 0:00:27]} 27. Rxd6 {[%clk 0:01:58]}  cxd6 {[%clk 0:00:28]} 28. a5 {[%clk 0:01:57]}  Nxc4 {[%clk 0:00:27]} 29. Qxc4 {[%clk 0:01:57]}  Qe6 {[%clk 0:00:27]} 30. Qxe6 {[%clk 0:01:48]}  fxe6 {[%clk 0:00:28]} 31. Ne1 {[%clk 0:01:43]}  d5 {[%clk 0:00:27]} 32. Nd3 {[%clk 0:01:39]}  d4 {[%clk 0:00:21]} 33. c4 {[%clk 0:01:37]}  Kf7 {[%clk 0:00:20]} 34. f4 {[%clk 0:01:31]}  Kf6 {[%clk 0:00:18]} 35. Kf3 {[%clk 0:01:31]}  exf4 {[%clk 0:00:17]} 36. gxf4 {[%clk 0:01:31]}  e5 {[%clk 0:00:15]} 37. fxe5+ {[%clk 0:01:20]}  Nxe5+ {[%clk 0:00:15]} 38. Nxe5 {[%clk 0:01:21]}  Kxe5 {[%clk 0:00:15]} 39. h5 {[%clk 0:01:21]}  Kf6 {[%clk 0:00:09]} 40. Ke2 {[%clk 0:01:18]}  g5 {[%clk 0:00:06]} 41. hxg6 {[%clk 0:01:15]}  h5 {[%clk 0:00:05]} 42. b5 {[%clk 0:01:12]}  h4 {[%clk 0:00:05]} 43. c5 {[%clk 0:01:11]}  h3 {[%clk 0:00:05]} 44. c6 {[%clk 0:00:35]}  bxc6 {[%clk 0:00:05]} 45. e5+ {[%clk 0:00:26]}  Kxg6 {[%clk 0:00:04]} 46. bxc6 {[%clk 0:00:21]}  h2 {[%clk 0:00:04]} 47. c7 {[%clk 0:00:21]}  h1=Q {[%clk 0:00:04]} 48. c8=Q {[%clk 0:00:22]}  Qe4+ {[%clk 0:00:04]} 49. Kd2 {[%clk 0:00:22]}  Qe3+ {[%clk 0:00:04]} 50. Kd1 {[%clk 0:00:23]}  Qxe5 {[%clk 0:00:05]} 51. Qxa6+ {[%clk 0:00:22]}  Kf5 {[%clk 0:00:05]} 52. Qd3+ {[%clk 0:00:19]}  Ke6 {[%clk 0:00:05]} 53. a6 {[%clk 0:00:19]}  Qa5 {[%clk 0:00:04]} 54. Qg6+ {[%clk 0:00:11]}  Kd7 {[%clk 0:00:03]} 55. Qf7+ {[%clk 0:00:10]}  Kd6 {[%clk 0:00:01]} 56. a7 {[%clk 0:00:09]} 1-0


[Site "https://www.chess.com"]

[Event "Titled Tuesday Blitz February 01 B 2022"]
[White "Deac, Bogdan-Daniel"]
[Black "Pranav, V"]
[WhiteFideId "1226380"]
[BlackFideId "25060783"]
[WhiteElo "2646"]
[BlackElo "2349"]
[Result "1-0"]
[Round "07"]
[TimeControl "180+1"]
[Date "2022.02.01"]
[WhiteClock "0:00:06"]
[BlackClock "0:00:01"]

1. e4 {[%clk 0:03:00]}  e5 {[%clk 0:02:54]} 2. Nf3 {[%clk 0:03:01]}  Nc6 {[%clk 0:02:55]} 3. Bb5 {[%clk 0:03:01]}  a6 {[%clk 0:02:55]} 4. Ba4 {[%clk 0:03:01]}  d6 {[%clk 0:02:56]} 5. O-O {[%clk 0:03:00]}  Bd7 {[%clk 0:02:56]} 6. d4 {[%clk 0:02:59]}  exd4 {[%clk 0:02:54]} 7. Nxd4 {[%clk 0:02:57]}  b5 {[%clk 0:02:54]} 8. Nxc6 {[%clk 0:02:57]}  Bxc6 {[%clk 0:02:55]} 9. Bb3 {[%clk 0:02:58]}  Nf6 {[%clk 0:02:56]} 10. Re1 {[%clk 0:02:50]}  Be7 {[%clk 0:02:54]} 11. Qd4 {[%clk 0:02:34]}  O-O {[%clk 0:02:53]} 12. c4 {[%clk 0:02:31]}  Nd7 {[%clk 0:02:52]} 13. Nc3 {[%clk 0:02:28]}  Bf6 {[%clk 0:02:51]} 14. Qd1 {[%clk 0:02:19]}  Nc5 {[%clk 0:02:50]} 15. f3 {[%clk 0:02:11]}  b4 {[%clk 0:02:48]} 16. Nd5 {[%clk 0:02:05]}  a5 {[%clk 0:02:45]} 17. Rb1 {[%clk 0:02:04]}  Re8 {[%clk 0:02:27]} 18. Nxf6+ {[%clk 0:01:56]}  Qxf6 {[%clk 0:02:25]} 19. Bc2 {[%clk 0:01:57]}  a4 {[%clk 0:02:13]} 20. Be3 {[%clk 0:01:39]}  Ne6 {[%clk 0:02:06]} 21. Qd2 {[%clk 0:01:34]}  h6 {[%clk 0:01:59]} 22. Qxb4 {[%clk 0:01:31]}  Reb8 {[%clk 0:01:56]} 23. Qd2 {[%clk 0:01:18]}  g5 {[%clk 0:01:32]} 24. b4 {[%clk 0:01:01]}  axb3 {[%clk 0:01:31]} 25. axb3 {[%clk 0:01:02]}  Ra2 {[%clk 0:01:30]} 26. e5 {[%clk 0:01:01]}  dxe5 {[%clk 0:01:13]} 27. Bh7+ {[%clk 0:00:58]}  Kxh7 {[%clk 0:01:13]} 28. Qxa2 {[%clk 0:00:59]}  e4 {[%clk 0:01:10]} 29. fxe4 {[%clk 0:00:53]}  Bxe4 {[%clk 0:01:11]} 30. Rbd1 {[%clk 0:00:53]}  Qc3 {[%clk 0:01:04]} 31. Bf2 {[%clk 0:00:21]}  Bg6 {[%clk 0:00:27]} 32. Re3 {[%clk 0:00:18]}  Qf6 {[%clk 0:00:26]} 33. Qe2 {[%clk 0:00:14]}  Nf4 {[%clk 0:00:25]} 34. Qf3 {[%clk 0:00:13]}  Bh5 {[%clk 0:00:25]} 35. g4 {[%clk 0:00:13]}  Bg6 {[%clk 0:00:20]} 36. Bg3 {[%clk 0:00:13]}  h5 {[%clk 0:00:14]} 37. Rf1 {[%clk 0:00:11]}  hxg4 {[%clk 0:00:08]} 38. Qxg4 {[%clk 0:00:11]}  Bf5 {[%clk 0:00:08]} 39. Qf3 {[%clk 0:00:09]}  Rg8 {[%clk 0:00:08]} 40. h4 {[%clk 0:00:04]}  Bh3 {[%clk 0:00:04]} 41. Qe4+ {[%clk 0:00:03]}  Bf5 {[%clk 0:00:03]} 42. hxg5 {[%clk 0:00:03]}  Bxe4 {[%clk 0:00:01]} 43. gxf6 {[%clk 0:00:03]}  Nh3+ {[%clk 0:00:01]} 44. Kh2 {[%clk 0:00:03]}  Ng5 {[%clk 0:00:02]} 45. Rf4 {[%clk 0:00:03]}  Bc6 {[%clk 0:00:01]} 46. Bh4 {[%clk 0:00:03]}  Ne6 {[%clk 0:00:01]} 47. Rf2 {[%clk 0:00:03]}  Rg6 {[%clk 0:00:01]} 48. Rh3 {[%clk 0:00:03]}  Kg8 {[%clk 0:00:02]} 49. Rg3 {[%clk 0:00:04]}  Kf8 {[%clk 0:00:02]} 50. Rxg6 {[%clk 0:00:04]}  fxg6 {[%clk 0:00:02]} 51. f7 {[%clk 0:00:04]}  g5 {[%clk 0:00:02]} 52. Bg3 {[%clk 0:00:05]}  Nd4 {[%clk 0:00:01]} 53. Bxc7 {[%clk 0:00:05]}  Nf3+ {[%clk 0:00:01]} 54. Kg3 {[%clk 0:00:06]}  g4 {[%clk 0:00:01]} 55. Kxg4 {[%clk 0:00:06]} 1-0


[Site "https://www.chess.com"]

[Event "Titled Tuesday Blitz February 01 B 2022"]
[White "Dourerassou, Jonathan"]
[Black "Sanchez Gonzalez, Sergio"]
[WhiteFideId "628050"]
[BlackFideId "2273020"]
[WhiteElo "2513"]
[BlackElo "2288"]
[Result "1-0"]
[Round "07"]
[TimeControl "180+1"]
[Date "2022.02.01"]
[WhiteClock "0:00:55"]
[BlackClock "0:00:07"]

1. f4 {[%clk 0:03:00]}  d5 {[%clk 0:02:58]} 2. Nf3 {[%clk 0:03:01]}  Bg4 {[%clk 0:02:52]} 3. e3 {[%clk 0:03:00]}  Nd7 {[%clk 0:02:50]} 4. Be2 {[%clk 0:03:00]}  Bxf3 {[%clk 0:02:46]} 5. Bxf3 {[%clk 0:03:00]}  c6 {[%clk 0:02:47]} 6. b3 {[%clk 0:03:00]}  e5 {[%clk 0:02:47]} 7. fxe5 {[%clk 0:02:56]}  Nxe5 {[%clk 0:02:47]} 8. Bb2 {[%clk 0:02:57]}  Bd6 {[%clk 0:02:43]} 9. O-O {[%clk 0:02:56]}  Nf6 {[%clk 0:02:42]} 10. Nc3 {[%clk 0:02:56]}  O-O {[%clk 0:02:41]} 11. Qe1 {[%clk 0:02:57]}  Qc7 {[%clk 0:02:38]} 12. Qh4 {[%clk 0:02:55]}  h6 {[%clk 0:02:37]} 13. Ne2 {[%clk 0:02:50]}  Nh7 {[%clk 0:02:31]} 14. Nd4 {[%clk 0:02:44]}  Ng5 {[%clk 0:02:21]} 15. Be2 {[%clk 0:02:40]}  Ng6 {[%clk 0:02:17]} 16. Qh5 {[%clk 0:02:37]}  Be5 {[%clk 0:02:14]} 17. Bd3 {[%clk 0:02:29]}  Ne4 {[%clk 0:02:08]} 18. Bxe4 {[%clk 0:02:21]}  dxe4 {[%clk 0:02:08]} 19. Rf5 {[%clk 0:02:21]}  Qe7 {[%clk 0:01:54]} 20. Bc3 {[%clk 0:02:06]}  c5 {[%clk 0:01:48]} 21. Ne2 {[%clk 0:02:06]}  Bxc3 {[%clk 0:01:46]} 22. Nxc3 {[%clk 0:02:07]}  Rad8 {[%clk 0:01:45]} 23. Nd5 {[%clk 0:02:06]}  Qe6 {[%clk 0:01:39]} 24. c4 {[%clk 0:01:54]}  b6 {[%clk 0:01:19]} 25. Raf1 {[%clk 0:01:53]}  Rd7 {[%clk 0:01:17]} 26. h3 {[%clk 0:01:47]}  Rfd8 {[%clk 0:01:10]} 27. R1f2 {[%clk 0:01:40]}  a6 {[%clk 0:01:08]} 28. Qg4 {[%clk 0:01:36]}  Ne7 {[%clk 0:00:48]} 29. Nf6+ {[%clk 0:01:23]}  Kh8 {[%clk 0:00:39]} 30. Nxd7 {[%clk 0:01:19]}  Nxf5 {[%clk 0:00:38]} 31. Nxb6 {[%clk 0:01:14]}  Qxb6 {[%clk 0:00:17]} 32. Qxf5 {[%clk 0:01:14]}  Qb7 {[%clk 0:00:16]} 33. Qxc5 {[%clk 0:01:12]}  Kg8 {[%clk 0:00:15]} 34. Qf5 {[%clk 0:01:10]}  Qd7 {[%clk 0:00:15]} 35. Qxe4 {[%clk 0:01:09]}  a5 {[%clk 0:00:14]} 36. d4 {[%clk 0:01:09]}  a4 {[%clk 0:00:14]} 37. d5 {[%clk 0:01:08]}  axb3 {[%clk 0:00:13]} 38. axb3 {[%clk 0:01:09]}  Re8 {[%clk 0:00:13]} 39. Qd4 {[%clk 0:01:08]}  Qb7 {[%clk 0:00:12]} 40. d6 {[%clk 0:01:03]}  Qxb3 {[%clk 0:00:12]} 41. d7 {[%clk 0:01:04]}  Rd8 {[%clk 0:00:11]} 42. Qd5 {[%clk 0:01:04]}  Qb1+ {[%clk 0:00:10]} 43. Rf1 {[%clk 0:01:02]}  Qg6 {[%clk 0:00:11]} 44. c5 {[%clk 0:01:01]}  Kh7 {[%clk 0:00:10]} 45. c6 {[%clk 0:01:00]}  Qg3 {[%clk 0:00:08]} 46. Qe4+ {[%clk 0:00:58]}  Kg8 {[%clk 0:00:07]} 47. Qe8+ {[%clk 0:00:55]} 1-0


[Site "https://www.chess.com"]

[Event "Titled Tuesday Blitz February 01 B 2022"]
[White "Garriga Cazorla, Pere"]
[Black "Sadhwani, Raunak"]
[WhiteFideId "32011601"]
[BlackFideId "35093487"]
[WhiteElo "2458"]
[BlackElo "2616"]
[Result "0-1"]
[Round "07"]
[TimeControl "180+1"]
[Date "2022.02.01"]
[WhiteClock "0:00:04"]
[BlackClock "0:00:06"]

1. d4 {[%clk 0:03:00]}  Nf6 {[%clk 0:03:00]} 2. c4 {[%clk 0:02:56]}  g6 {[%clk 0:03:00]} 3. Nc3 {[%clk 0:02:54]}  Bg7 {[%clk 0:03:01]} 4. e4 {[%clk 0:02:54]}  d6 {[%clk 0:03:01]} 5. h3 {[%clk 0:02:55]}  O-O {[%clk 0:03:01]} 6. Be3 {[%clk 0:02:55]}  Nbd7 {[%clk 0:02:59]} 7. g4 {[%clk 0:02:49]}  e5 {[%clk 0:02:59]} 8. d5 {[%clk 0:02:50]}  Nc5 {[%clk 0:02:59]} 9. f3 {[%clk 0:02:50]}  a5 {[%clk 0:02:54]} 10. Nge2 {[%clk 0:02:48]}  c6 {[%clk 0:02:54]} 11. Ng3 {[%clk 0:02:47]}  cxd5 {[%clk 0:02:41]} 12. cxd5 {[%clk 0:02:48]}  Bd7 {[%clk 0:02:40]} 13. Qd2 {[%clk 0:02:41]}  Rc8 {[%clk 0:02:38]} 14. Be2 {[%clk 0:02:35]}  a4 {[%clk 0:02:38]} 15. h4 {[%clk 0:02:34]}  Qa5 {[%clk 0:02:37]} 16. Rc1 {[%clk 0:02:16]}  a3 {[%clk 0:02:10]} 17. b3 {[%clk 0:02:15]}  Bxg4 {[%clk 0:01:30]} 18. Rb1 {[%clk 0:01:44]}  Nd3+ {[%clk 0:00:28]} 19. Bxd3 {[%clk 0:01:37]}  Qxc3 {[%clk 0:00:27]} 20. fxg4 {[%clk 0:01:28]}  Nxg4 {[%clk 0:00:28]} 21. Nf1 {[%clk 0:01:18]}  f5 {[%clk 0:00:25]} 22. Qxc3 {[%clk 0:01:10]}  Rxc3 {[%clk 0:00:25]} 23. Kd2 {[%clk 0:01:10]}  Rfc8 {[%clk 0:00:22]} 24. Rg1 {[%clk 0:00:50]}  h5 {[%clk 0:00:11]} 25. Rxg4 {[%clk 0:00:34]}  fxg4 {[%clk 0:00:09]} 26. Bc4 {[%clk 0:00:34]}  R3xc4 {[%clk 0:00:07]} 27. bxc4 {[%clk 0:00:35]}  Rxc4 {[%clk 0:00:08]} 28. Kd3 {[%clk 0:00:34]}  Rc7 {[%clk 0:00:08]} 29. Nd2 {[%clk 0:00:33]}  Bf6 {[%clk 0:00:07]} 30. Nc4 {[%clk 0:00:32]}  Bxh4 {[%clk 0:00:07]} 31. Nxd6 {[%clk 0:00:31]}  Bf6 {[%clk 0:00:08]} 32. Rf1 {[%clk 0:00:30]}  Be7 {[%clk 0:00:06]} 33. Nb5 {[%clk 0:00:30]}  Rd7 {[%clk 0:00:07]} 34. Bb6 {[%clk 0:00:26]}  g3 {[%clk 0:00:06]} 35. Bc7 {[%clk 0:00:25]}  Bc5 {[%clk 0:00:05]} 36. Bxe5 {[%clk 0:00:14]}  g2 {[%clk 0:00:05]} 37. Rb1 {[%clk 0:00:14]}  g1=Q {[%clk 0:00:06]} 38. Rxg1 {[%clk 0:00:14]}  Bxg1 {[%clk 0:00:07]} 39. Nd4 {[%clk 0:00:12]}  Bxd4 {[%clk 0:00:04]} 40. Kxd4 {[%clk 0:00:13]}  g5 {[%clk 0:00:04]} 41. Bf6 {[%clk 0:00:12]}  g4 {[%clk 0:00:05]} 42. Bh4 {[%clk 0:00:12]}  Rf7 {[%clk 0:00:04]} 43. e5 {[%clk 0:00:12]}  Rf4+ {[%clk 0:00:04]} 44. Kc5 {[%clk 0:00:12]}  Rf3 {[%clk 0:00:03]} 45. e6 {[%clk 0:00:10]}  g3 {[%clk 0:00:03]} 46. d6 {[%clk 0:00:10]}  g2 {[%clk 0:00:04]} 47. d7 {[%clk 0:00:10]}  g1=Q+ {[%clk 0:00:04]} 48. Kb5 {[%clk 0:00:10]}  Qf1+ {[%clk 0:00:04]} 49. Kb6 {[%clk 0:00:10]}  Qb1+ {[%clk 0:00:04]} 50. Ka7 {[%clk 0:00:10]}  Qg1+ {[%clk 0:00:04]} 51. Ka8 {[%clk 0:00:09]}  Qd4 {[%clk 0:00:05]} 52. d8=N {[%clk 0:00:05]}  Qxd8+ {[%clk 0:00:05]} 53. Bxd8 {[%clk 0:00:04]}  Rf8 {[%clk 0:00:06]} 0-1


[Site "https://www.chess.com"]

[Event "Titled Tuesday Blitz February 01 B 2022"]
[White "Jobava, Baadur"]
[Black "Abdrlauf, Elham"]
[WhiteFideId "13601520"]
[BlackFideId "1533533"]
[WhiteElo "2617"]
[BlackElo "2334"]
[Result "1-0"]
[Round "07"]
[TimeControl "180+1"]
[Date "2022.02.01"]
[WhiteClock "0:01:02"]
[BlackClock "0:00:01"]

1. b3 {[%clk 0:03:00]}  e5 {[%clk 0:02:59]} 2. Bb2 {[%clk 0:03:01]}  Nc6 {[%clk 0:02:59]} 3. Nf3 {[%clk 0:03:02]}  e4 {[%clk 0:02:58]} 4. Nd4 {[%clk 0:03:02]}  Nf6 {[%clk 0:02:57]} 5. e3 {[%clk 0:03:02]}  Nxd4 {[%clk 0:02:52]} 6. Bxd4 {[%clk 0:03:03]}  Be7 {[%clk 0:02:50]} 7. c4 {[%clk 0:03:03]}  O-O {[%clk 0:02:49]} 8. Nc3 {[%clk 0:03:03]}  c5 {[%clk 0:02:50]} 9. Be5 {[%clk 0:03:04]}  d6 {[%clk 0:02:50]} 10. Bg3 {[%clk 0:03:04]}  Bf5 {[%clk 0:02:46]} 11. Bh4 {[%clk 0:03:02]}  d5 {[%clk 0:02:23]} 12. Bxf6 {[%clk 0:03:01]}  Bxf6 {[%clk 0:02:23]} 13. cxd5 {[%clk 0:03:02]}  Qa5 {[%clk 0:02:10]} 14. Qc2 {[%clk 0:02:38]}  Rad8 {[%clk 0:02:00]} 15. Rd1 {[%clk 0:02:38]}  Bg4 {[%clk 0:01:32]} 16. Be2 {[%clk 0:02:29]}  Bxe2 {[%clk 0:01:31]} 17. Kxe2 {[%clk 0:02:27]}  Qa6+ {[%clk 0:01:14]} 18. Ke1 {[%clk 0:02:27]}  Bxc3 {[%clk 0:01:14]} 19. dxc3 {[%clk 0:02:27]}  Qg6 {[%clk 0:01:15]} 20. g3 {[%clk 0:02:20]}  Rd6 {[%clk 0:01:14]} 21. c4 {[%clk 0:02:19]}  h5 {[%clk 0:01:08]} 22. h4 {[%clk 0:02:18]}  Rf6 {[%clk 0:01:01]} 23. Rd2 {[%clk 0:02:13]}  Rd8 {[%clk 0:01:01]} 24. Kd1 {[%clk 0:02:08]}  Qf5 {[%clk 0:00:53]} 25. Kc1 {[%clk 0:02:06]}  a6 {[%clk 0:00:44]} 26. Rhd1 {[%clk 0:02:05]}  Rdd6 {[%clk 0:00:44]} 27. Kb1 {[%clk 0:02:02]}  Qe5 {[%clk 0:00:34]} 28. Qb2 {[%clk 0:02:01]}  Qf5 {[%clk 0:00:34]} 29. a4 {[%clk 0:02:00]}  a5 {[%clk 0:00:31]} 30. Qc3 {[%clk 0:01:57]}  b6 {[%clk 0:00:31]} 31. Kb2 {[%clk 0:01:57]}  g6 {[%clk 0:00:27]} 32. Ka2 {[%clk 0:01:56]}  Qg4 {[%clk 0:00:28]} 33. Qe5 {[%clk 0:01:54]}  Qf3 {[%clk 0:00:17]} 34. Rg1 {[%clk 0:01:50]}  Qg4 {[%clk 0:00:17]} 35. Kb2 {[%clk 0:01:46]}  Kh7 {[%clk 0:00:17]} 36. Kc3 {[%clk 0:01:45]}  Kg8 {[%clk 0:00:17]} 37. Kc2 {[%clk 0:01:28]}  Kh7 {[%clk 0:00:17]} 38. Re1 {[%clk 0:01:20]}  Kg8 {[%clk 0:00:17]} 39. Rde2 {[%clk 0:01:18]}  Kh7 {[%clk 0:00:17]} 40. Kd2 {[%clk 0:01:19]}  Kg8 {[%clk 0:00:17]} 41. Rg1 {[%clk 0:01:17]}  Kh7 {[%clk 0:00:18]} 42. Ke1 {[%clk 0:01:17]}  Kg8 {[%clk 0:00:18]} 43. Rh1 {[%clk 0:01:17]}  Kh7 {[%clk 0:00:18]} 44. Qg5 {[%clk 0:01:13]}  Qf3 {[%clk 0:00:16]} 45. Rh2 {[%clk 0:01:13]}  Rf5 {[%clk 0:00:16]} 46. Qe7 {[%clk 0:01:12]}  Rff6 {[%clk 0:00:17]} 47. Qe5 {[%clk 0:01:12]}  Qg4 {[%clk 0:00:16]} 48. Kf1 {[%clk 0:01:07]}  Kg8 {[%clk 0:00:15]} 49. Qg5 {[%clk 0:01:05]}  Qf3 {[%clk 0:00:14]} 50. Rg2 {[%clk 0:01:06]}  Kf8 {[%clk 0:00:12]} 51. g4 {[%clk 0:01:05]}  Qh3 {[%clk 0:00:03]} 52. gxh5 {[%clk 0:01:03]}  Rf5 {[%clk 0:00:03]} 53. Qg3 {[%clk 0:01:01]}  Qxg3 {[%clk 0:00:03]} 54. Rxg3 {[%clk 0:01:02]}  Rxh5 {[%clk 0:00:02]} 55. Rg4 {[%clk 0:01:03]}  f5 {[%clk 0:00:01]} 56. Rf4 {[%clk 0:01:03]}  Kg7 {[%clk 0:00:02]} 57. Kg2 {[%clk 0:01:03]}  Kf6 {[%clk 0:00:02]} 58. f3 {[%clk 0:01:02]}  g5 {[%clk 0:00:02]} 59. hxg5+ {[%clk 0:01:02]}  Rxg5+ {[%clk 0:00:03]} 60. Kf2 {[%clk 0:01:02]}  exf3 {[%clk 0:00:03]} 61. Kxf3 {[%clk 0:01:03]}  Ke5 {[%clk 0:00:01]} 62. e4 {[%clk 0:01:02]}  Rd8 {[%clk 0:00:01]} 63. exf5+ {[%clk 0:01:02]} 1-0


[Site "https://www.chess.com"]